fUSD/lending_fUSD_20250720
["ID","MTS","AMOUNT","RATE_DAILY","PERIOD"]
[373398724,1752985846422,-480.0,0.00019178,2]
[373398725,1752985846431,-503.0265962,0.00019178,2]
[373398726,1752985846440,-307.07107632,0.00019178,2]
[373398727,1752985846450,-584.47,0.00019178,2]
[373398728,1752985846459,-500.0,0.00019178,2]
[373398729,1752985846469,-480.0,0.00019178,2]
[373398730,1752985846478,-584.47,0.00019178,2]
[373398731,1752985846487,-2104.69,0.00019178,2]
[373398732,1752985846497,-500.54629721,0.00019178,2]
[373398733,1752985846506,-488.81128941,0.00019178,2]
[373398734,1752985846515,-511.38991356,0.00019178,2]
[373398735,1752985846524,-480.0,0.00019178,2]
[373398736,1752985846533,-480.0,0.00019178,2]
[373398737,1752985846543,-500.0,0.00019178,2]
[373398738,1752985846552,-666.9,0.00019178,2]
[373398739,1752985846562,-480.0,0.00019178,2]
[373398740,1752985846571,-503.59413338,0.00019178,2]
[373398741,1752985846580,-480.0,0.00019178,2]
[373398742,1752985846590,-494.33397546,0.00019178,2]
[373398743,1752985846599,-480.0,0.00019178,2]
[373398744,1752985846608,-480.0,0.00019178,2]
[373398745,1752985846618,-507.12682297,0.00019178,2]
[373398746,1752985846627,-480.0,0.00019178,2]
[373398747,1752985846637,-507.37640822,0.00019178,2]
[373398748,1752985846646,-480.0,0.00019178,2]
[373398749,1752985846655,-480.0,0.00019178,2]
[373398750,1752985846664,-512.71638358,0.00019178,2]
[373398752,1752985846674,-480.0,0.00019178,2]
[373398754,1752985846683,-499.94,0.00019178,2]
[373398756,1752985846692,-480.0,0.00019178,2]
[373398758,1752985846701,-501.60714064,0.00019178,2]
[373398759,1752985846712,-480.0,0.00019178,2]
[373398760,1752985846721,-480.0,0.00019178,2]
[373398762,1752985846730,-213.9599408,0.00019178,2]
[373398764,1752985846739,-480.0,0.00019178,2]
[373398765,1752985846748,-480.0,0.00019178,2]
[373398766,1752985846757,-510.66122919,0.00019178,2]
[373398767,1752985846767,-480.0,0.00019178,2]
[373398768,1752985846777,-500.0,0.00019178,2]
[373398770,1752985846787,-480.0,0.00019178,2]
[373398771,1752985846796,-526.55,0.00019178,2]
[373398772,1752985846805,-413.233,0.00019178,2]
[373398773,1752985846814,-1468.98,0.00019178,2]
[373398774,1752985846827,-557.65066267,0.00019178,2]
[373398775,1752985846835,-480.0,0.00019178,2]
[373398776,1752985846844,-522.36286057,0.00019178,2]
[373398777,1752985846854,-579.8,0.00019178,2]
[373398778,1752985846864,-480.0,0.00019178,2]
[373398779,1752985846873,-480.0,0.00019178,2]
[373398780,1752985846883,-520.34,0.00019178,2]
[373398781,1752985846892,-485.69416209,0.00019178,2]
[373398782,1752985846902,-589.6,0.00019178,2]
[373398783,1752985846911,-481.61525684,0.00019178,2]
[373398784,1752985846920,-480.0,0.00019178,2]
[373398785,1752985846933,-484.92112751,0.00019178,2]
[373398786,1752985846942,-480.0,0.00019178,2]
[373398787,1752985846951,-480.0,0.00019178,2]
[373398788,1752985846960,-480.0,0.00019178,2]
[373398789,1752985846970,-500.0,0.00019178,2]
[373398790,1752985846980,-468.59468249,0.00019178,2]
[373398791,1752985846989,-474.21255216,0.00019178,2]
[373398792,1752985846998,-504.5269805,0.00019178,2]
[373398793,1752985847007,-480.0,0.00019178,2]
[373398794,1752985847016,-500.0,0.00019178,2]
[373398795,1752985847025,-538.78,0.00019178,2]
[373398796,1752985847034,-480.0,0.00019178,2]
[373398797,1752985847044,-480.0,0.00019178,2]
[373398798,1752985847053,-480.0,0.00019178,2]
[373398799,1752985847062,-480.0,0.00019178,2]
[373398800,1752985847071,-500.0,0.00019178,2]
[373398801,1752985847080,-480.0,0.00019178,2]
[373398802,1752985847089,-480.0,0.00019178,2]
[373398803,1752985847099,-480.0,0.00019178,2]
[373398804,1752985847108,-480.0,0.00019178,2]
[373398805,1752985847117,-2856.63,0.00019178,2]
[373398806,1752985847126,-485.71507838,0.00019178,2]
[373398807,1752985847135,-480.0,0.00019178,2]
[373398808,1752985847143,-480.0,0.00019178,2]
[373398809,1752985847153,-480.0,0.00019178,2]
[373398810,1752985847162,-500.0,0.00019178,2]
[373398811,1752985847171,-500.0,0.00019178,2]
[373398812,1752985847180,-753.63,0.00019178,2]
[373398813,1752985847189,-480.0,0.00019178,2]
[373398814,1752985847200,-500.0,0.00019178,2]
[373398815,1752985847210,-480.0,0.00019178,2]
[373398816,1752985847219,-480.0,0.00019178,2]
[373398817,1752985847228,-516.5625483,0.00019178,2]
[373398818,1752985847237,-480.0,0.00019178,2]
[373398819,1752985847246,-480.0,0.00019178,2]
[373398820,1752985847255,-480.0,0.00019178,2]
[373398821,1752985847264,-480.0,0.00019178,2]
[373398822,1752985847273,-466.5282724,0.00019178,2]
[373398823,1752985847282,-480.0,0.00019178,2]
[373398824,1752985847291,-641.99,0.00019178,2]
[373398825,1752985847300,-480.0,0.00019178,2]
[373398826,1752985847309,-625.44,0.00019178,2]
[373398827,1752985847318,-480.0,0.00019178,2]
[373398828,1752985847327,-480.0,0.00019178,2]
[373398829,1752985847337,-461.83799878,0.00019178,2]
[373398830,1752985847346,-480.0,0.00019178,2]
[373398831,1752985847355,-480.0,0.00019178,2]
[373398832,1752985847363,-484.95916809,0.00019178,2]
[373398833,1752985847372,-480.0,0.00019178,2]
[373398834,1752985847381,-480.0,0.00019178,2]
[373398835,1752985847391,-480.0,0.00019178,2]
[373398836,1752985847399,-480.0,0.00019178,2]
[373398837,1752985847408,-468.26925008,0.00019178,2]
[373398838,1752985847417,-480.0,0.00019178,2]
[373398839,1752985847426,-480.0,0.00019178,2]
[373398840,1752985847435,-5624.53,0.00019178,2]
[373398841,1752985847444,-509.02,0.00019178,2]
[373398842,1752985847453,-500.0,0.00019178,2]
[373398843,1752985847468,-480.0,0.00019178,2]
[373398844,1752985847482,-468.14352632,0.00019178,2]
[373398845,1752985847496,-500.0,0.00019178,2]
[373398846,1752985847508,-480.0,0.00019178,2]
[373398847,1752985847519,-480.0,0.00019178,2]
[373398848,1752985847532,-480.0,0.00019178,2]
[373398849,1752985847544,-480.0,0.00019178,2]
[373398850,1752985847557,-508.28239939,0.00019178,2]
[373398851,1752985847571,-468.26292417,0.00019178,2]
[373398852,1752985847584,-500.0,0.00019178,2]
[373398853,1752985847596,-500.0,0.00019178,2]
[373398854,1752985847608,-480.0,0.00019178,2]
[373398855,1752985847619,-480.0,0.00019178,2]
[373398856,1752985847630,-480.0,0.00019178,2]
[373398857,1752985847644,-480.0,0.00019178,2]
[373398858,1752985847657,-500.0,0.00019178,2]
[373398859,1752985847670,-517.57534314,0.00019178,2]
[373398860,1752985847684,-480.0,0.00019178,2]
[373398861,1752985847698,-480.0,0.00019178,2]
[373398862,1752985847712,-1484.91,0.00019178,2]
[373398863,1752985847724,-480.0,0.00019178,2]
[373398864,1752985847739,-510.53843591,0.00019178,2]
[373398865,1752985847752,-480.0,0.00019178,2]
[373398866,1752985847765,-480.0,0.00019178,2]
[373398867,1752985847779,-500.0,0.00019178,2]
[373398868,1752985847792,-500.0,0.00019178,2]
[373398869,1752985847805,-518.69400398,0.00019178,2]
[373398870,1752985847819,-480.0,0.00019178,2]
[373398871,1752985847833,-517.23752784,0.00019178,2]
[373398872,1752985847846,-480.0,0.00019178,2]
[373398873,1752985847858,-480.0,0.00019178,2]
[373398874,1752985847870,-518.30544224,0.00019178,2]
[373398875,1752985847880,-480.0,0.00019178,2]
[373398876,1752985847892,-628.47,0.00019178,2]
[373398877,1752985847905,-480.0,0.00019178,2]
[373398878,1752985847920,-500.0,0.00019178,2]
[373398879,1752985847935,-480.0,0.00019178,2]
[373398880,1752985847945,-480.0,0.00019178,2]
[373398881,1752985847955,-528.20995142,0.00019178,2]
[373398882,1752985847967,-500.0,0.00019178,2]
[373398883,1752985847980,-480.0,0.00019178,2]
[373398884,1752985847995,-480.0,0.00019178,2]
[373398885,1752985848006,-500.0,0.00019178,2]
[373398886,1752985848018,-524.77,0.00019178,2]
[373398887,1752985848028,-502.74485258,0.00019178,2]
[373398888,1752985848039,-500.0,0.00019178,2]
[373398889,1752985848051,-480.0,0.00019178,2]
[373398890,1752985848063,-480.0,0.00019178,2]
[373398891,1752985848074,-480.0,0.00019178,2]
[373398892,1752985848092,-480.0,0.00019178,2]
[373398893,1752985848105,-500.0,0.00019178,2]
[373398894,1752985848119,-480.0,0.00019178,2]
[373398895,1752985848132,-480.0,0.00019178,2]
[373398896,1752985848145,-512.42912575,0.00019178,2]
[373398897,1752985848158,-480.0,0.00019178,2]
[373398898,1752985848170,-500.0,0.00019178,2]
[373398899,1752985848183,-480.0,0.00019178,2]
[373398900,1752985848197,-480.0,0.00019178,2]
[373398901,1752985848210,-500.0,0.00019178,2]
[373398902,1752985848231,-500.0,0.00019178,2]
[373398903,1752985848244,-480.0,0.00019178,2]
[373398904,1752985848257,-500.0,0.00019178,2]
[373398905,1752985848269,-480.0,0.00019178,2]
[373398906,1752985848281,-511.59673364,0.00019178,2]
[373398907,1752985848294,-480.0,0.00019178,2]
[373398908,1752985848306,-805.74,0.00019178,2]
[373398909,1752985848318,-480.0,0.00019178,2]
[373398910,1752985848330,-480.0,0.00019178,2]
[373398911,1752985848342,-480.0,0.00019178,2]
[373398912,1752985848354,-480.0,0.00019178,2]
[373398913,1752985848366,-480.0,0.00019178,2]
[373398914,1752985848378,-480.0,0.00019178,2]
[373398915,1752985848391,-488.33,0.00019178,2]
[373398916,1752985848403,-625.25,0.00019178,2]
[373398917,1752985848416,-665.2,0.00019178,2]
[373398918,1752985848428,-480.0,0.00019178,2]
[373398919,1752985848440,-480.0,0.00019178,2]
[373398920,1752985848452,-560.82557673,0.00019178,2]
[373398921,1752985848464,-426.26984648,0.00019178,2]
[373398922,1752985848475,-510.91507113,0.00019178,2]
[373398923,1752985848487,-480.0,0.00019178,2]
[373398924,1752985848499,-416.46705003,0.00019178,2]
[373398925,1752985848511,-337.5027968,0.00019178,2]
[373398926,1752985848523,-516.53800749,0.00019178,2]
[373398927,1752985848534,-500.0,0.00019178,2]
[373398928,1752985848547,-1451.12,0.00019178,2]
[373398929,1752985848558,-480.0,0.00019178,2]
[373398930,1752985848570,-580.75,0.00019178,2]
[373398931,1752985848582,-510.74343545,0.00019178,2]
[373398932,1752985848593,-480.0,0.00019178,2]
[373398933,1752985848606,-727.46,0.00019178,2]
[373398934,1752985848617,-480.0,0.00019178,2]
[373398935,1752985848628,-480.0,0.00019178,2]
[373398936,1752985848640,-500.0,0.00019178,2]
[373398937,1752985848652,-510.07063425,0.00019178,2]
[373398938,1752985848664,-500.0,0.00019178,2]
[373398939,1752985848675,-480.0,0.00019178,2]
[373398940,1752985848688,-509.82536137,0.00019178,2]
[373398941,1752985848700,-503.67365826,0.00019178,2]
[373398942,1752985848712,-480.0,0.00019178,2]
[373398943,1752985848724,-480.0,0.00019178,2]
[373398944,1752985848736,-669.45,0.00019178,2]
[373398945,1752985848748,-508.90931462,0.00019178,2]
[373398946,1752985848760,-516.33833468,0.00019178,2]
[373398947,1752985848772,-480.0,0.00019178,2]
[373398948,1752985848784,-480.0,0.00019178,2]
[373398949,1752985848796,-551.3,0.00019178,2]
[373398950,1752985848808,-953.31,0.00019178,2]
[373398951,1752985848820,-273.02280241,0.00019178,2]
[373398952,1752985848832,-480.0,0.00019178,2]
[373398953,1752985848844,-1005.69,0.00019178,2]
[373398954,1752985848856,-502.9,0.00019178,2]
[373398955,1752985848868,-480.0,0.00019178,2]
[373398956,1752985848880,-480.0,0.00019178,2]
[373398957,1752985848891,-480.0,0.00019178,2]
[373398958,1752985848903,-381.23279552,0.00019178,2]
[373398959,1752985848915,-480.0,0.00019178,2]
[373398960,1752985848929,-563.65,0.00019178,2]
[373398961,1752985848942,-514.01639021,0.00019178,2]
[373398962,1752985848954,-314.67032131,0.00019178,2]
[373398963,1752985848965,-480.0,0.00019178,2]
[373398964,1752985848979,-480.0,0.00019178,2]
[373398965,1752985848990,-500.0,0.00019178,2]
[373398966,1752985849002,-480.0,0.00019178,2]
[373398967,1752985849015,-183.43679517,0.00019178,2]
[373398968,1752985849027,-510.69478841,0.00019178,2]
[373398969,1752985849038,-529.06,0.00019178,2]
[373398970,1752985849049,-484.61,0.00019178,2]
[373398971,1752985849061,-424.63243457,0.00019178,2]
[373398972,1752985849073,-480.0,0.00019178,2]
[373398973,1752985849085,-500.0,0.00019178,2]
[373398974,1752985849096,-480.0,0.00019178,2]
[373398975,1752985849108,-480.0,0.00019178,2]
[373398976,1752985849119,-505.52443788,0.00019178,2]
[373398977,1752985849131,-480.0,0.00019178,2]
[373398978,1752985849142,-491.17,0.00019178,2]
[373398979,1752985849153,-480.0,0.00019178,2]
[373398980,1752985849164,-235.53125481,0.00019178,2]
[373398981,1752985849175,-480.0,0.00019178,2]
[373398982,1752985849187,-815.82,0.00019178,2]
[373398983,1752985849198,-1184.94,0.00019178,2]
[373398984,1752985849210,-480.0,0.00019178,2]
[373398985,1752985849221,-480.0,0.00019178,2]
[373398986,1752985849233,-510.0400094,0.00019178,2]
[373398987,1752985849245,-480.0,0.00019178,2]
[373398988,1752985849256,-561.66549482,0.00019178,2]
[373398989,1752985849269,-480.0,0.00019178,2]
[373398990,1752985849284,-480.0,0.00019178,2]
[373398991,1752985849297,-480.0,0.00019178,2]
[373398992,1752985849309,-480.0,0.00019178,2]
[373398993,1752985849321,-480.0,0.00019178,2]
[373398994,1752985849332,-480.0,0.00019178,2]
[373398995,1752985849344,-480.0,0.00019178,2]
[373398996,1752985849355,-480.0,0.00019178,2]
[373398997,1752985849367,-480.0,0.00019178,2]
[373398998,1752985849378,-480.0,0.00019178,2]
[373398999,1752985849390,-480.0,0.00019178,2]
[373399000,1752985849402,-503.04005012,0.00019178,2]
[373399001,1752985849413,-480.0,0.00019178,2]
[373399002,1752985849424,-555.4333275,0.00019178,2]
[373399003,1752985849435,-500.0,0.00019178,2]
[373399004,1752985849447,-480.0,0.00019178,2]
[373399005,1752985849458,-480.0,0.00019178,2]
[373399006,1752985849470,-609.26336702,0.00019178,2]
[373399007,1752985849481,-810.6,0.00019178,2]
[373399008,1752985849493,-480.0,0.00019178,2]
[373399009,1752985849504,-500.0,0.00019178,2]
[373399010,1752985849515,-484.65338471,0.00019178,2]
[373399011,1752985849527,-480.0,0.00019178,2]
[373399012,1752985849539,-480.0,0.00019178,2]
[373399013,1752985849550,-480.0,0.00019178,2]
[373399014,1752985849562,-480.0,0.00019178,2]
[373399015,1752985849573,-504.77462109,0.00019178,2]
[373399016,1752985849584,-480.0,0.00019178,2]
[373399017,1752985849595,-500.0,0.00019178,2]
[373399018,1752985849607,-2043.03,0.00019178,2]
[373399019,1752985849618,-480.0,0.00019178,2]
[373399020,1752985849629,-480.0,0.00019178,2]
[373399021,1752985849640,-787.76,0.00019178,2]
[373399022,1752985849651,-502.51689684,0.00019178,2]
[373399023,1752985849661,-480.0,0.00019178,2]
[373399024,1752985849672,-480.0,0.00019178,2]
[373399025,1752985849682,-480.0,0.00019178,2]
[373399026,1752985849694,-503.40578924,0.00019178,2]
[373399027,1752985849705,-480.0,0.00019178,2]
[373399028,1752985849715,-578.75,0.00019178,2]
[373399029,1752985849726,-480.0,0.00019178,2]
[373399030,1752985849737,-480.0,0.00019178,2]
[373399031,1752985849747,-508.84553212,0.00019178,2]
[373399032,1752985849758,-480.0,0.00019178,2]
[373399033,1752985849769,-480.0,0.00019178,2]
[373399034,1752985849780,-505.54648945,0.00019178,2]
[373399035,1752985849790,-480.0,0.00019178,2]
[373399036,1752985849801,-487.69,0.00019178,2]
[373399037,1752985849812,-480.0,0.00019178,2]
[373399038,1752985849823,-604.60331579,0.00019178,2]
[373399039,1752985849834,-503.94205672,0.00019178,2]
[373399040,1752985849845,-480.0,0.00019178,2]
[373399041,1752985849856,-480.0,0.00019178,2]
[373399042,1752985849867,-480.0,0.00019178,2]
[373399043,1752985849878,-1134.34,0.00019178,2]
[373399044,1752985849889,-480.0,0.00019178,2]
[373399045,1752985849899,-582.81,0.00019178,2]
[373399046,1752985849910,-480.0,0.00019178,2]
[373399047,1752985849921,-480.0,0.00019178,2]
[373399048,1752985849937,-508.83916921,0.00019178,2]
[373399049,1752985849948,-480.0,0.00019178,2]
[373399050,1752985849958,-516.15574601,0.00019178,2]
[373399051,1752985849970,-500.0,0.00019178,2]
[373399052,1752985849981,-480.0,0.00019178,2]
[373399053,1752985849992,-480.0,0.00019178,2]
[373399054,1752985850003,-480.0,0.00019178,2]
[373399055,1752985850014,-480.0,0.00019178,2]
[373399056,1752985850025,-500.0,0.00019178,2]
[373399057,1752985850036,-413.31031039,0.00019178,2]
[373399058,1752985850047,-2338.26,0.00019178,2]
[373399059,1752985850058,-531.87,0.00019178,2]
[373399060,1752985850068,-504.3967972,0.00019178,2]
[373399061,1752985850079,-480.0,0.00019178,2]
[373399062,1752985850090,-480.0,0.00019178,2]
[373399063,1752985850101,-510.29234611,0.00019178,2]
[373399064,1752985850112,-506.05800535,0.00019178,2]
[373399065,1752985850122,-480.0,0.00019178,2]
[373399066,1752985850133,-480.0,0.00019178,2]
[373399067,1752985850144,-480.0,0.00019178,2]
[373399068,1752985850155,-480.0,0.00019178,2]
[373399069,1752985850166,-480.0,0.00019178,2]
[373399070,1752985850177,-506.97806819,0.00019178,2]
[373399071,1752985850188,-480.0,0.00019178,2]
[373399072,1752985850550,-582.02,0.00019178,2]
[373399073,1752985850586,-565.45,0.00019178,2]
[373399074,1752985850605,-671.06,0.00019178,2]
[373399075,1752985850615,-671.06,0.00019178,2]
[373399076,1752985850624,-480.0,0.00019178,2]
[373399077,1752985850633,-480.0,0.00019178,2]
[373399078,1752985850643,-519.08579316,0.00019178,8]
[373399079,1752985850652,-480.0,0.00019178,2]
[373399080,1752985850661,-1829.34,0.00019178,2]
[373399081,1752985850671,-480.0,0.00019178,2]
[373399082,1752985850680,-303.72700869,0.00019178,2]
[373399083,1752985850689,-480.0,0.00019178,2]
[373399084,1752985850699,-501.66,0.00019178,2]
[373399085,1752985850709,-480.0,0.00019178,2]
[373399086,1752985850718,-480.0,0.00019178,2]
[373399087,1752985850727,-495.14,0.00019178,2]
[373399088,1752985850737,-480.0,0.00019178,2]
[373399089,1752985850746,-480.0,0.00019178,2]
[373399090,1752985850755,-480.0,0.00019178,2]
[373399091,1752985850765,-526.34759413,0.00019178,2]
[373399092,1752985850774,-480.0,0.00019178,2]
[373399093,1752985850783,-517.98023009,0.00019178,2]
[373399094,1752985850792,-468.44,0.00019178,2]
[373399095,1752985850802,-480.0,0.00019178,2]
[373399096,1752985850812,-321.11544333,0.00019178,2]
[373399097,1752985850822,-480.0,0.00019178,2]
[373399098,1752985850831,-480.0,0.00019178,2]
[373399099,1752985850840,-1145.56,0.00019178,2]
[373399100,1752985850850,-3167.67,0.00019178,2]
[373399101,1752985850860,-646.8,0.00019178,2]
[373399102,1752985850869,-500.0,0.00019178,2]
[373399103,1752985850878,-923.03,0.00019178,2]
[373399104,1752985850888,-480.0,0.00019178,2]
[373399105,1752985850897,-480.0,0.00019178,2]
[373399106,1752985850907,-930.33,0.00019178,2]
[373399107,1752985850917,-480.0,0.00019178,2]
[373399108,1752985850928,-480.0,0.00019178,2]
[373399109,1752985850940,-484.10485703,0.00019178,2]
[373399110,1752985850949,-354.02672523,0.00019178,2]
[373399111,1752985850958,-500.0,0.00019178,2]
[373399112,1752985850968,-480.0,0.00019178,2]
[373399113,1752985850979,-480.0,0.00019178,2]
[373399114,1752985850988,-480.0,0.00019178,2]
[373399115,1752985850997,-480.0,0.00019178,2]
[373399116,1752985851008,-480.0,0.00019178,2]
[373399117,1752985851017,-480.0,0.00019178,2]
[373399118,1752985851027,-956.79,0.00019178,2]
[373399119,1752985851036,-480.0,0.00019178,2]
[373399120,1752985851046,-500.0,0.00019178,2]
[373399121,1752985851055,-946.52,0.00019178,2]
[373399122,1752985851064,-747.33,0.00019178,2]
[373399123,1752985851074,-480.0,0.00019178,2]
[373399124,1752985851083,-549.27215193,0.00019178,2]
[373399125,1752985851093,-480.0,0.00019178,2]
[373399126,1752985851102,-528.58,0.00019178,2]
[373399127,1752985851112,-279.41572163,0.00019178,2]
[373399128,1752985851120,-480.0,0.00019178,2]
[373399129,1752985851130,-426.81517846,0.00019178,2]
[373399130,1752985851139,-480.0,0.00019178,2]
[373399131,1752985851148,-480.0,0.00019178,2]
[373399132,1752985851157,-480.0,0.00019178,2]
[373399133,1752985851167,-500.0,0.00019178,2]
[373399134,1752985851177,-651.73,0.00019178,2]
[373399135,1752985851186,-480.0,0.00019178,2]
[373399136,1752985851197,-480.0,0.00019178,2]
[373399137,1752985851206,-498.41048504,0.00019178,2]
[373399138,1752985851216,-480.0,0.00019178,2]
[373399139,1752985851225,-570.29,0.00019178,2]
[373399140,1752985851235,-500.0,0.00019178,2]
[373399141,1752985851245,-1414.13,0.00019178,2]
[373399142,1752985851254,-480.0,0.00019178,2]
[373399143,1752985851263,-1781.49,0.00019178,2]
[373399144,1752985851273,-2341.12,0.00019178,2]
[373399145,1752985851282,-546.33,0.00019178,2]
[373399146,1752985851291,-480.0,0.00019178,2]
[373399147,1752985851301,-500.49,0.00019178,2]
[373399148,1752985851311,-480.0,0.00019178,2]
[373399149,1752985851320,-480.0,0.00019178,2]
[373399150,1752985851329,-500.0,0.00019178,2]
[373399151,1752985851339,-4420.7,0.00019178,2]
[373399152,1752985851348,-960.15,0.00019178,2]
[373399153,1752985851358,-500.0,0.00019178,2]
[373399154,1752985851367,-480.0,0.00019178,2]
[373399155,1752985851376,-500.0,0.00019178,2]
[373399156,1752985851385,-2532.95,0.00019178,2]
[373399157,1752985851394,-480.0,0.00019178,2]
[373399158,1752985851404,-480.0,0.00019178,2]
[373399159,1752985851413,-500.0,0.00019178,2]
[373399160,1752985851423,-480.0,0.00019178,2]
[373399161,1752985851432,-871.35,0.00019178,2]
[373399162,1752985851441,-207.99068479,0.00019178,2]
[373399163,1752985851451,-536.45,0.00019178,2]
[373399164,1752985851460,-701.3,0.00019178,2]
[373399165,1752985851470,-480.0,0.00019178,2]
[373399166,1752985851479,-1246.83,0.00019178,2]
[373399167,1752985851488,-504.29737882,0.00019178,2]
[373399168,1752985851497,-500.0,0.00019178,2]
[373399169,1752985851507,-841.96,0.00019178,2]
[373399170,1752985851516,-480.0,0.00019178,2]
[373399171,1752985851526,-500.0,0.00019178,2]
[373399172,1752985851535,-480.0,0.00019178,2]
[373399173,1752985851545,-927.56,0.00019178,2]
[373399174,1752985851555,-480.0,0.00019178,2]
[373399175,1752985851564,-480.0,0.00019178,2]
[373399176,1752985851574,-707.49,0.00019178,2]
[373399177,1752985851583,-500.0,0.00019178,2]
[373399178,1752985851592,-1238.86,0.00019178,2]
[373399179,1752985851602,-3486.32,0.00019178,2]
[373399180,1752985851611,-500.0,0.00019178,2]
[373399181,1752985851621,-480.0,0.00019178,2]
[373399182,1752985851630,-480.0,0.00019178,2]
[373399183,1752985851639,-480.0,0.00019178,2]
[373399184,1752985851648,-505.28954291,0.00019178,2]
[373399185,1752985851658,-480.0,0.00019178,2]
[373399186,1752985851667,-611.43,0.00019178,2]
[373399187,1752985851677,-1303.65,0.00019178,2]
[373399188,1752985851686,-557.35,0.00019178,2]
[373399189,1752985851696,-645.04,0.00019178,2]
[373399190,1752985851705,-1727.24,0.00019178,2]
[373399191,1752985851714,-561.11093977,0.00019178,2]
[373399192,1752985851723,-1489.23,0.00019178,2]
[373399193,1752985851733,-480.0,0.00019178,2]
[373399194,1752985851743,-480.0,0.00019178,2]
[373399195,1752985851752,-500.0,0.00019178,2]
[373399196,1752985851762,-480.0,0.00019178,2]
[373399197,1752985851771,-480.0,0.00019178,2]
[373399198,1752985851780,-480.0,0.00019178,2]
[373399199,1752985851789,-514.21879653,0.00019178,2]
[373399200,1752985851798,-5090.23,0.00019178,2]
[373399201,1752985851808,-480.0,0.00019178,2]
[373399202,1752985851817,-603.1,0.00019178,2]
[373399203,1752985851827,-480.0,0.00019178,2]
[373399204,1752985851836,-480.0,0.00019178,2]
[373399205,1752985851845,-4193.92,0.00019178,2]
[373399206,1752985851855,-1953.96,0.00019178,2]
[373399207,1752985851864,-480.0,0.00019178,2]
[373399208,1752985851873,-507.5761899,0.00019178,2]
[373399209,1752985851883,-480.0,0.00019178,2]
[373399210,1752985851892,-1330.01,0.00019178,2]
[373399211,1752985851901,-480.0,0.00019178,2]
[373399212,1752985851911,-500.0,0.00019178,2]
[373399213,1752985851920,-1322.38,0.00019178,2]
[373399214,1752985851933,-500.0,0.00019178,2]
[373399215,1752985851942,-505.73764633,0.00019178,2]
[373399216,1752985851951,-480.0,0.00019178,2]
[373399217,1752985851961,-480.0,0.00019178,2]
[373399218,1752985851970,-480.0,0.00019178,2]
[373399219,1752985851979,-480.0,0.00019178,2]
[373399220,1752985851988,-504.93634422,0.00019178,2]
[373399221,1752985851998,-1037.55,0.00019178,2]
[373399222,1752985852007,-603.01,0.00019178,2]
[373399223,1752985852016,-480.0,0.00019178,2]
[373399224,1752985852025,-1240.21,0.00019178,2]
[373399225,1752985852034,-667.87,0.00019178,2]
[373399226,1752985852047,-480.0,0.00019178,2]
[373399227,1752985852059,-491.13,0.00019178,2]
[373399228,1752985852068,-480.0,0.00019178,2]
[373399229,1752985852077,-480.0,0.00019178,2]
[373399230,1752985852087,-500.0,0.00019178,2]